[Event "*** Titled Tuesday Blitz"]
[Site "Chess.com"]
[Date "2020.05.05"]
[Round "2"]
[White "ChessAintFun"]
[Black "Phenix2k"]
[Result "1-0"]
[WhiteElo "2623"]
[BlackElo "2287"]
[TimeControl "180+1"]
[EndTime "10:17:39 PDT"]
[Termination "ChessAintFun won by resignation"]

1. e4 {[%clk 0:03:00.9]} 1... e5 {[%clk 0:02:59.5]} 2. Nf3 {[%clk 0:03:01]} 2...
Nc6 {[%clk 0:02:59.7]} 3. Bc4 {[%clk 0:03:01.3]} 3... Nf6 {[%clk 0:02:59.2]} 4.
d3 {[%clk 0:03:01.8]} 4... Bc5 {[%clk 0:02:58.8]} 5. c3 {[%clk 0:03:02.3]} 5...
O-O {[%clk 0:02:58.3]} 6. a4 {[%clk 0:03:02.3]} 6... d6 {[%clk 0:02:54.5]} 7. b4
{[%clk 0:02:57.5]} 7... Bxb4 {[%clk 0:02:16.9]} 8. cxb4 {[%clk 0:02:58.4]} 8...
d5 {[%clk 0:02:17]} 9. exd5 {[%clk 0:02:52.8]} 9... Nxb4 {[%clk 0:02:17]} 10.
Ba3 {[%clk 0:02:41.3]} 10... a5 {[%clk 0:02:14.4]} 11. Bxb4 {[%clk 0:02:36.2]}
11... axb4 {[%clk 0:02:14.3]} 12. Qb3 {[%clk 0:02:36.9]} 12... Bg4 {[%clk
0:02:10.8]} 13. Nbd2 {[%clk 0:02:36.9]} 13... e4 {[%clk 0:02:07.6]} 14. dxe4
{[%clk 0:02:35.8]} 14... Nxe4 {[%clk 0:02:07.8]} 15. Nxe4 {[%clk 0:02:30.6]}
15... Re8 {[%clk 0:02:07.9]} 16. O-O {[%clk 0:02:20.6]} 16... Rxe4 {[%clk
0:02:05.6]} 17. d6 {[%clk 0:02:21.1]} 17... Qxd6 {[%clk 0:02:01.6]} 18. Bxf7+
{[%clk 0:02:20.6]} 18... Kh8 {[%clk 0:02:02.2]} 19. Rad1 {[%clk 0:02:11.6]}
19... Qf6 {[%clk 0:02:01.5]} 20. Bd5 {[%clk 0:02:11.4]} 20... Bxf3 {[%clk
0:01:47]} 21. Qxf3 {[%clk 0:02:07.4]} 21... Rf4 {[%clk 0:01:47.3]} 22. Qb3
{[%clk 0:02:04.2]} 22... c6 {[%clk 0:01:47.5]} 23. Bc4 {[%clk 0:02:02.5]} 23...
Rf8 {[%clk 0:01:41.8]} 24. f3 {[%clk 0:02:01.9]} 24... b5 {[%clk 0:01:36.2]} 25.
axb5 {[%clk 0:01:59.5]} 25... cxb5 {[%clk 0:01:36.7]} 26. Bd3 {[%clk 0:01:59.3]}
26... h5 {[%clk 0:01:23.6]} 27. Be4 {[%clk 0:01:55.7]} 27... Qc3 {[%clk
0:01:18.4]} 28. Qd5 {[%clk 0:01:39.6]} 28... Rh4 {[%clk 0:01:12.8]} 29. Qd6
{[%clk 0:01:09.4]} 29... Qf6 {[%clk 0:00:59.3]} 30. Qxf6 {[%clk 0:01:09]} 30...
gxf6 {[%clk 0:00:59.1]} 31. Rb1 {[%clk 0:01:08.9]} 31... f5 {[%clk 0:00:57.7]}
32. Bc6 {[%clk 0:01:08.9]} 32... Rc8 {[%clk 0:00:54.6]} 33. Bxb5 {[%clk
0:01:07]} 33... Rb8 {[%clk 0:00:54.9]} 34. Bd3 {[%clk 0:01:06.3]} 34... Rf4
{[%clk 0:00:52.2]} 35. Rb3 {[%clk 0:01:06.1]} 35... h4 {[%clk 0:00:52.1]} 36. g3
{[%clk 0:01:05.2]} 36... hxg3 {[%clk 0:00:52]} 37. hxg3 {[%clk 0:01:06.1]} 37...
Rd4 {[%clk 0:00:51.4]} 38. Bxf5 {[%clk 0:01:04.9]} 38... Kg7 {[%clk 0:00:52.3]}
39. Re1 {[%clk 0:01:02.3]} 39... Kf6 {[%clk 0:00:47.4]} 40. Bd3 {[%clk
0:00:57.6]} 40... Rbd8 {[%clk 0:00:45.3]} 41. Re3 {[%clk 0:00:57.8]} 41... Kg5
{[%clk 0:00:44.4]} 42. Kf2 {[%clk 0:00:57.4]} 42... Kf6 {[%clk 0:00:44.3]} 43.
f4 {[%clk 0:00:57.6]} 43... Rb8 {[%clk 0:00:42.9]} 44. Kf3 {[%clk 0:00:57.8]}
44... Rd7 {[%clk 0:00:42.5]} 45. g4 {[%clk 0:00:58.4]} 45... Ra7 {[%clk
0:00:41.4]} 46. g5+ {[%clk 0:00:58.9]} 46... Kg7 {[%clk 0:00:41.2]} 47. Kg4
{[%clk 0:00:58.9]} 47... Ra3 {[%clk 0:00:41.3]} 48. Bc4 {[%clk 0:00:59.2]} 48...
Rba8 {[%clk 0:00:39.5]} 49. f5 {[%clk 0:00:58.3]} 49... Rxb3 {[%clk 0:00:38.9]}
50. Bxb3 {[%clk 0:00:59.2]} 50... Re8 {[%clk 0:00:34.3]} 51. Rxe8 {[%clk
0:00:58.1]} 1-0

[Event "*** Titled Tuesday Blitz"]
[Site "Chess.com"]
[Date "2020.05.05"]
[Round "2"]
[White "Yuri202062"]
[Black "Nastya_Rakhmangulova"]
[Result "1-0"]
[WhiteElo "2555"]
[BlackElo "2293"]
[TimeControl "180+1"]
[EndTime "10:17:40 PDT"]
[Termination "Yuri202062 won by resignation"]

1. d4 {[%clk 0:03:00.9]} 1... d5 {[%clk 0:03:00.2]} 2. c4 {[%clk 0:03:00.4]}
2... c6 {[%clk 0:03:00.9]} 3. Nc3 {[%clk 0:02:58.9]} 3... Nf6 {[%clk 0:03:01.3]}
4. e3 {[%clk 0:02:59.1]} 4... a6 {[%clk 0:03:00.3]} 5. Bd3 {[%clk 0:02:57]} 5...
b5 {[%clk 0:02:56.5]} 6. b3 {[%clk 0:02:49.7]} 6... Bg4 {[%clk 0:02:55.6]} 7.
Nge2 {[%clk 0:02:49.5]} 7... e6 {[%clk 0:02:53.1]} 8. Qc2 {[%clk 0:02:48.5]}
8... Bxe2 {[%clk 0:02:31.1]} 9. Bxe2 {[%clk 0:02:39.5]} 9... Nbd7 {[%clk
0:02:24.5]} 10. O-O {[%clk 0:02:39.3]} 10... Bd6 {[%clk 0:02:24.4]} 11. e4
{[%clk 0:02:26]} 11... b4 {[%clk 0:02:20.4]} 12. e5 {[%clk 0:02:25.7]} 12...
bxc3 {[%clk 0:02:18.3]} 13. exd6 {[%clk 0:02:20.4]} 13... Ne4 {[%clk 0:02:15.8]}
14. c5 {[%clk 0:02:18.2]} 14... Qf6 {[%clk 0:02:15.5]} 15. Be3 {[%clk 0:02:12]}
15... e5 {[%clk 0:02:05.5]} 16. Rad1 {[%clk 0:02:10.9]} 16... O-O {[%clk
0:01:58.5]} 17. dxe5 {[%clk 0:01:56.3]} 17... Qxe5 {[%clk 0:01:57.9]} 18. Bd4
{[%clk 0:01:53.4]} 18... Qe6 {[%clk 0:01:56]} 19. b4 {[%clk 0:01:49]} 19... Rfb8
{[%clk 0:01:43.5]} 20. a3 {[%clk 0:01:39.7]} 20... a5 {[%clk 0:01:43.5]} 21. f3
{[%clk 0:01:21.2]} 21... Nef6 {[%clk 0:00:47.4]} 22. Bxc3 {[%clk 0:01:14.4]}
22... axb4 {[%clk 0:00:47.4]} 23. axb4 {[%clk 0:01:14]} 23... d4 {[%clk
0:00:44]} 24. Rxd4 {[%clk 0:01:04]} 24... Ra2 {[%clk 0:00:41.2]} 25. Bb2 {[%clk
0:00:55.9]} 25... Nxc5 {[%clk 0:00:41.4]} 26. Bc4 {[%clk 0:00:50.3]} 26... Qe3+
{[%clk 0:00:40]} 27. Qf2 {[%clk 0:00:42.7]} 27... Qxf2+ {[%clk 0:00:27.3]} 28.
Rxf2 {[%clk 0:00:42.8]} 28... Rxb4 {[%clk 0:00:09.8]} 29. Bxa2 {[%clk
0:00:41.5]} 1-0

[Event "*** Titled Tuesday Blitz"]
[Site "Chess.com"]
[Date "2020.05.05"]
[Round "2"]
[White "Blagorod"]
[Black "UmutErdemGunduz"]
[Result "0-1"]
[WhiteElo "2134"]
[BlackElo "2395"]
[TimeControl "180+1"]
[EndTime "10:17:44 PDT"]
[Termination "UmutErdemGunduz won by resignation"]

1. e4 {[%clk 0:03:00.9]} 1... e5 {[%clk 0:02:59.8]} 2. Nf3 {[%clk 0:03:01]} 2...
Nc6 {[%clk 0:02:57.2]} 3. Bb5 {[%clk 0:03:00.9]} 3... a6 {[%clk 0:02:55.9]} 4.
Ba4 {[%clk 0:03:01]} 4... Nf6 {[%clk 0:02:55.6]} 5. O-O {[%clk 0:03:00.1]} 5...
Be7 {[%clk 0:02:56]} 6. d3 {[%clk 0:02:59.3]} 6... b5 {[%clk 0:02:55.6]} 7. Bb3
{[%clk 0:02:59.6]} 7... O-O {[%clk 0:02:56.2]} 8. a4 {[%clk 0:02:59.7]} 8... d5
{[%clk 0:02:55.2]} 9. exd5 {[%clk 0:02:56.1]} 9... Na5 {[%clk 0:02:54.5]} 10.
Nxe5 {[%clk 0:02:47.1]} 10... Nxb3 {[%clk 0:02:36]} 11. Nc6 {[%clk 0:02:40.9]}
11... Bg4 {[%clk 0:02:03]} 12. Qe1 {[%clk 0:02:24.3]} 12... Qd6 {[%clk
0:01:34.4]} 13. Nxe7+ {[%clk 0:02:19.1]} 13... Kh8 {[%clk 0:01:32.6]} 14. cxb3
{[%clk 0:02:17]} 14... Rfe8 {[%clk 0:01:32.9]} 15. h3 {[%clk 0:01:51.2]} 15...
Rxe7 {[%clk 0:01:31.1]} 16. Qd2 {[%clk 0:01:28]} 16... Bd7 {[%clk 0:01:30.3]}
17. axb5 {[%clk 0:01:22]} 17... Bxb5 {[%clk 0:01:29.5]} 18. Nc3 {[%clk
0:01:22.6]} 18... Rae8 {[%clk 0:01:28.3]} 19. Nxb5 {[%clk 0:01:16.3]} 19... axb5
{[%clk 0:01:29.2]} 20. Qf4 {[%clk 0:01:11]} 20... Qxd5 {[%clk 0:01:25.8]} 21.
Be3 {[%clk 0:01:08.3]} 21... Qxd3 {[%clk 0:01:20.7]} 22. Rfd1 {[%clk 0:01:02.6]}
22... Qxb3 {[%clk 0:01:20.6]} 23. Bd4 {[%clk 0:00:58.5]} 23... Rd7 {[%clk
0:01:10.1]} 24. Qf5 {[%clk 0:00:34.5]} 24... Red8 {[%clk 0:00:59.4]} 25. Kh2
{[%clk 0:00:24.1]} 25... Rxd4 {[%clk 0:00:55.1]} 26. Rxd4 {[%clk 0:00:23.4]}
26... Re8 {[%clk 0:00:44.4]} 27. Rh4 {[%clk 0:00:21.1]} 27... Qxb2 {[%clk
0:00:43.5]} 28. Rd1 {[%clk 0:00:17.8]} 28... g6 {[%clk 0:00:40.7]} 29. Rhd4
{[%clk 0:00:17.1]} 29... gxf5 {[%clk 0:00:39.9]} 30. R4d2 {[%clk 0:00:15.4]}
30... Qe5+ {[%clk 0:00:39.3]} 31. g3 {[%clk 0:00:14.5]} 31... Ne4 {[%clk
0:00:39.4]} 32. Re2 {[%clk 0:00:12.3]} 32... Qf6 {[%clk 0:00:38]} 0-1

[Event "*** Titled Tuesday Blitz"]
[Site "Chess.com"]
[Date "2020.05.05"]
[Round "2"]
[White "Jaka_Brilej"]
[Black "Gandrade2"]
[Result "1-0"]
[WhiteElo "2361"]
[BlackElo "2017"]
[TimeControl "180+1"]
[EndTime "10:17:45 PDT"]
[Termination "Jaka_Brilej won by checkmate"]

1. e4 {[%clk 0:03:00.9]} 1... c6 {[%clk 0:02:59.9]} 2. Nf3 {[%clk 0:03:00.6]}
2... d5 {[%clk 0:03:00.3]} 3. Nc3 {[%clk 0:03:00.5]} 3... Bg4 {[%clk 0:02:59.4]}
4. h3 {[%clk 0:03:00]} 4... Bxf3 {[%clk 0:02:59.8]} 5. Qxf3 {[%clk 0:02:59.7]}
5... Nf6 {[%clk 0:03:00.2]} 6. d4 {[%clk 0:02:57.5]} 6... dxe4 {[%clk
0:02:58.4]} 7. Nxe4 {[%clk 0:02:57.1]} 7... Qxd4 {[%clk 0:02:56.9]} 8. Bd3
{[%clk 0:02:57]} 8... Qd5 {[%clk 0:02:43.9]} 9. Bf4 {[%clk 0:02:20.6]} 9... Nbd7
{[%clk 0:02:34.7]} 10. a3 {[%clk 0:02:13.9]} 10... e6 {[%clk 0:02:10.8]} 11.
O-O-O {[%clk 0:02:11.8]} 11... Qa2 {[%clk 0:01:57.4]} 12. Nc3 {[%clk 0:01:48.2]}
12... Qa1+ {[%clk 0:01:49.5]} 13. Nb1 {[%clk 0:01:45.3]} 13... Qa2 {[%clk
0:01:44.9]} 14. c4 {[%clk 0:01:01.7]} 14... Qb3 {[%clk 0:01:34.8]} 15. Nd2
{[%clk 0:00:58.4]} 15... Qa4 {[%clk 0:01:27]} 16. Bc2 {[%clk 0:00:51.7]} 16...
Qa6 {[%clk 0:01:20.3]} 17. g4 {[%clk 0:00:50]} 17... h6 {[%clk 0:00:56.6]} 18.
Kb1 {[%clk 0:00:44.3]} 18... Be7 {[%clk 0:00:55.2]} 19. h4 {[%clk 0:00:43.3]}
19... Nb6 {[%clk 0:00:46]} 20. Bd3 {[%clk 0:00:41.8]} 20... Bxa3 {[%clk
0:00:29.2]} 21. bxa3 {[%clk 0:00:38.7]} 21... Qxa3 {[%clk 0:00:29.4]} 22. Bc2
{[%clk 0:00:39]} 22... Qb4+ {[%clk 0:00:27.9]} 23. Qb3 {[%clk 0:00:38.3]} 23...
Qc5 {[%clk 0:00:28.3]} 24. Be3 {[%clk 0:00:38.1]} 24... Qe7 {[%clk 0:00:24.5]}
25. g5 {[%clk 0:00:38.5]} 25... hxg5 {[%clk 0:00:20.5]} 26. hxg5 {[%clk
0:00:39.4]} 26... Rxh1 {[%clk 0:00:18.3]} 27. Rxh1 {[%clk 0:00:40.3]} 27... Ng8
{[%clk 0:00:17]} 28. Ne4 {[%clk 0:00:39]} 28... Nd7 {[%clk 0:00:13.3]} 29. Bf4
{[%clk 0:00:34.7]} 29... O-O-O {[%clk 0:00:11.4]} 30. Nd6+ {[%clk 0:00:34.5]}
30... Kc7 {[%clk 0:00:08.9]} 31. Qxb7# {[%clk 0:00:34.1]} 1-0

[Event "*** Titled Tuesday Blitz"]
[Site "Chess.com"]
[Date "2020.05.05"]
[Round "2"]
[White "Kildepiotr"]
[Black "Fins0905"]
[Result "1-0"]
[WhiteElo "2484"]
[BlackElo "2655"]
[TimeControl "180+1"]
[EndTime "10:17:46 PDT"]
[Termination "Kildepiotr won by resignation"]

1. Nf3 {[%clk 0:03:00.9]} 1... d5 {[%clk 0:02:59.6]} 2. g3 {[%clk 0:02:59]} 2...
c6 {[%clk 0:02:56]} 3. Bg2 {[%clk 0:02:58.9]} 3... Bg4 {[%clk 0:02:54.1]} 4. O-O
{[%clk 0:02:58.8]} 4... Nd7 {[%clk 0:02:53.6]} 5. d3 {[%clk 0:02:59]} 5... e5
{[%clk 0:02:52.7]} 6. Nbd2 {[%clk 0:02:59.1]} 6... Ngf6 {[%clk 0:02:52.2]} 7. e4
{[%clk 0:02:59.1]} 7... dxe4 {[%clk 0:02:49.8]} 8. dxe4 {[%clk 0:02:58.7]} 8...
Be7 {[%clk 0:02:48.7]} 9. Qe2 {[%clk 0:02:55.5]} 9... O-O {[%clk 0:02:46.3]} 10.
a4 {[%clk 0:02:55.4]} 10... Qc7 {[%clk 0:02:41.5]} 11. b3 {[%clk 0:02:55]} 11...
Rfe8 {[%clk 0:02:40.7]} 12. Bb2 {[%clk 0:02:54.5]} 12... Bf8 {[%clk 0:02:37.9]}
13. Nc4 {[%clk 0:02:54]} 13... b5 {[%clk 0:02:31.2]} 14. axb5 {[%clk 0:02:53.3]}
14... cxb5 {[%clk 0:02:31.2]} 15. Ne3 {[%clk 0:02:53.9]} 15... a6 {[%clk
0:02:27.3]} 16. Nxg4 {[%clk 0:02:53.3]} 16... Nxg4 {[%clk 0:02:26.5]} 17. Nh4
{[%clk 0:02:50.2]} 17... Ngf6 {[%clk 0:02:23.3]} 18. Nf5 {[%clk 0:02:48.9]}
18... Rec8 {[%clk 0:02:16]} 19. Rac1 {[%clk 0:02:42.3]} 19... g6 {[%clk
0:01:55.1]} 20. Ne3 {[%clk 0:02:41.6]} 20... Bh6 {[%clk 0:01:53.9]} 21. Rfd1
{[%clk 0:02:35.3]} 21... Qc5 {[%clk 0:01:33.1]} 22. Rd3 {[%clk 0:02:24.9]} 22...
Ra7 {[%clk 0:01:17.5]} 23. c4 {[%clk 0:02:20.3]} 23... Qb4 {[%clk 0:01:07.2]}
24. cxb5 {[%clk 0:02:16.1]} 24... Rxc1+ {[%clk 0:01:03.8]} 25. Bxc1 {[%clk
0:02:17]} 25... Qxb5 {[%clk 0:01:03.1]} 26. Qc2 {[%clk 0:02:09.1]} 26... Kg7
{[%clk 0:00:52.4]} 27. Rd6 {[%clk 0:01:49.7]} 27... Qb4 {[%clk 0:00:45.1]} 28.
Rc6 {[%clk 0:01:36.6]} 28... Qe1+ {[%clk 0:00:40.3]} 29. Bf1 {[%clk 0:01:36.5]}
29... a5 {[%clk 0:00:33.2]} 30. Bd2 {[%clk 0:01:35.8]} 30... Qa1 {[%clk
0:00:32.9]} 31. Bc3 {[%clk 0:01:29.9]} 31... Qa3 {[%clk 0:00:31.3]} 32. Nc4
{[%clk 0:01:29.1]} 32... Qe7 {[%clk 0:00:30.6]} 33. Nxa5 {[%clk 0:01:26.8]}
33... Nc5 {[%clk 0:00:28.2]} 34. Bb4 {[%clk 0:01:22.6]} 34... Rxa5 {[%clk
0:00:18]} 35. Bxa5 {[%clk 0:01:20.5]} 35... Ncxe4 {[%clk 0:00:18.3]} 36. Bg2
{[%clk 0:01:16.9]} 36... Ng5 {[%clk 0:00:11.8]} 37. h4 {[%clk 0:01:16.3]} 37...
Ne6 {[%clk 0:00:11.8]} 38. Qc4 {[%clk 0:01:10.9]} 38... Qa3 {[%clk 0:00:11.6]}
39. Bc3 {[%clk 0:01:03]} 39... Qc1+ {[%clk 0:00:11.7]} 40. Bf1 {[%clk
0:01:02.9]} 40... Qd1 {[%clk 0:00:04.2]} 41. Bxe5 {[%clk 0:01:00.6]} 1-0

[Event "*** Titled Tuesday Blitz"]
[Site "Chess.com"]
[Date "2020.05.05"]
[Round "2"]
[White "AndriiTop"]
[Black "mikolka1985"]
[Result "0-1"]
[WhiteElo "2289"]
[BlackElo "2563"]
[TimeControl "180+1"]
[EndTime "10:17:46 PDT"]
[Termination "mikolka1985 won by resignation"]

1. d4 {[%clk 0:02:59.1]} 1... Nf6 {[%clk 0:02:58.7]} 2. Nf3 {[%clk 0:02:57.6]}
2... e6 {[%clk 0:02:58.2]} 3. c4 {[%clk 0:02:54.8]} 3... b6 {[%clk 0:02:57.3]}
4. g3 {[%clk 0:02:46.1]} 4... Bb7 {[%clk 0:02:56.4]} 5. Bg2 {[%clk 0:02:45.1]}
5... Be7 {[%clk 0:02:51.3]} 6. O-O {[%clk 0:02:44.3]} 6... O-O {[%clk
0:02:51.1]} 7. Nc3 {[%clk 0:02:44.1]} 7... Ne4 {[%clk 0:02:50.2]} 8. Qc2 {[%clk
0:02:42.3]} 8... Nxc3 {[%clk 0:02:48.9]} 9. Qxc3 {[%clk 0:02:42.7]} 9... Be4
{[%clk 0:02:47.2]} 10. Rd1 {[%clk 0:02:37.6]} 10... d6 {[%clk 0:02:46.3]} 11.
Bh3 {[%clk 0:02:19.4]} 11... Nd7 {[%clk 0:02:42.3]} 12. d5 {[%clk 0:02:15.3]}
12... e5 {[%clk 0:02:31.5]} 13. b4 {[%clk 0:01:57.1]} 13... Bg6 {[%clk
0:02:23.5]} 14. Be3 {[%clk 0:01:44.8]} 14... f5 {[%clk 0:02:22.2]} 15. c5 {[%clk
0:01:41.3]} 15... bxc5 {[%clk 0:02:05]} 16. bxc5 {[%clk 0:01:39.9]} 16... dxc5
{[%clk 0:01:56]} 17. Nxe5 {[%clk 0:01:21]} 17... Nxe5 {[%clk 0:01:52.6]} 18.
Qxe5 {[%clk 0:01:19.8]} 18... Bf6 {[%clk 0:01:52.5]} 19. Qe6+ {[%clk 0:01:19.7]}
19... Bf7 {[%clk 0:01:48.9]} 20. Qxf5 {[%clk 0:01:16.3]} 20... Bxa1 {[%clk
0:01:47.6]} 21. Rxa1 {[%clk 0:01:15.1]} 21... Qxd5 {[%clk 0:01:46.8]} 22. Qc2
{[%clk 0:01:14.2]} 22... Qc4 {[%clk 0:01:37.1]} 23. Qb2 {[%clk 0:00:50.5]} 23...
Rab8 {[%clk 0:01:32.1]} 24. Qe5 {[%clk 0:00:47.7]} 24... Rfe8 {[%clk 0:01:29.6]}
25. Qxc7 {[%clk 0:00:46.6]} 25... Qc3 {[%clk 0:01:20.1]} 26. Rc1 {[%clk
0:00:44.5]} 26... Qb2 {[%clk 0:01:16.3]} 27. Qxa7 {[%clk 0:00:26.7]} 27... c4
{[%clk 0:01:10.8]} 28. Bd7 {[%clk 0:00:21.8]} 28... Ra8 {[%clk 0:01:05.6]} 29.
Qd4 {[%clk 0:00:17.6]} 29... Qxd4 {[%clk 0:01:03.3]} 30. Bxd4 {[%clk 0:00:17.7]}
30... Rxe2 {[%clk 0:00:59]} 31. a4 {[%clk 0:00:18.1]} 31... Rd2 {[%clk
0:00:31.9]} 32. Bc3 {[%clk 0:00:17.2]} 0-1

[Event "*** Titled Tuesday Blitz"]
[Site "Chess.com"]
[Date "2020.05.05"]
[Round "2"]
[White "robertofabregas"]
[Black "GuerrieroFromLevant"]
[Result "0-1"]
[WhiteElo "2093"]
[BlackElo "2380"]
[TimeControl "180+1"]
[EndTime "10:17:48 PDT"]
[Termination "GuerrieroFromLevant won by resignation"]

1. d4 {[%clk 0:03:00.9]} 1... d5 {[%clk 0:02:59]} 2. Bf4 {[%clk 0:03:01.3]} 2...
Nf6 {[%clk 0:02:58.3]} 3. e3 {[%clk 0:03:01.6]} 3... c5 {[%clk 0:02:58.7]} 4. c3
{[%clk 0:03:01.4]} 4... Nc6 {[%clk 0:02:59.1]} 5. Nd2 {[%clk 0:02:59.8]} 5...
Bf5 {[%clk 0:02:54.8]} 6. h3 {[%clk 0:02:55.2]} 6... Qb6 {[%clk 0:02:52.5]} 7.
Qb3 {[%clk 0:02:54.5]} 7... c4 {[%clk 0:02:52.2]} 8. Qxb6 {[%clk 0:02:53.9]}
8... axb6 {[%clk 0:02:53.1]} 9. g4 {[%clk 0:02:53.3]} 9... Bg6 {[%clk
0:02:53.7]} 10. a3 {[%clk 0:02:43.9]} 10... Nd7 {[%clk 0:02:46.2]} 11. Ngf3
{[%clk 0:02:36.8]} 11... f6 {[%clk 0:02:45]} 12. Bg2 {[%clk 0:02:18.1]} 12... e5
{[%clk 0:02:42.8]} 13. Bg3 {[%clk 0:02:14.5]} 13... b5 {[%clk 0:02:38.1]} 14.
O-O {[%clk 0:02:13.6]} 14... Bd3 {[%clk 0:02:22.2]} 15. Rfe1 {[%clk 0:02:02.2]}
15... e4 {[%clk 0:02:21.6]} 16. Nh4 {[%clk 0:01:55.7]} 16... Ne7 {[%clk
0:02:02.7]} 17. f3 {[%clk 0:01:54.5]} 17... g5 {[%clk 0:02:01.4]} 18. Nf5 {[%clk
0:01:49.3]} 18... Nxf5 {[%clk 0:02:00.9]} 19. gxf5 {[%clk 0:01:49.8]} 19... exf3
{[%clk 0:01:59.6]} 20. Bxf3 {[%clk 0:01:45.8]} 20... Nb6 {[%clk 0:01:57.1]} 21.
e4 {[%clk 0:01:42.7]} 21... Kd7 {[%clk 0:01:57.2]} 22. e5 {[%clk 0:01:23.3]}
22... fxe5 {[%clk 0:01:49.7]} 23. Bxe5 {[%clk 0:01:11.3]} 23... Bd6 {[%clk
0:01:49.2]} 24. Bxh8 {[%clk 0:01:10.1]} 24... Rxh8 {[%clk 0:01:50.1]} 25. Be2
{[%clk 0:00:40.2]} 25... Bxf5 {[%clk 0:01:45.9]} 26. Bg4 {[%clk 0:00:39.9]}
26... Bxg4 {[%clk 0:01:45.2]} 27. hxg4 {[%clk 0:00:40.8]} 27... Bf4 {[%clk
0:01:44.2]} 28. Nf3 {[%clk 0:00:40]} 28... Kd6 {[%clk 0:01:44.7]} 29. Re2 {[%clk
0:00:33.8]} 29... Nd7 {[%clk 0:01:42.8]} 30. Rae1 {[%clk 0:00:33.1]} 30... h5
{[%clk 0:01:42.8]} 31. gxh5 {[%clk 0:00:27.9]} 31... Rxh5 {[%clk 0:01:42.4]} 32.
Ne5 {[%clk 0:00:26.8]} 32... Nxe5 {[%clk 0:01:39.2]} 33. dxe5+ {[%clk
0:00:25.4]} 33... Ke6 {[%clk 0:01:39.4]} 34. Kg2 {[%clk 0:00:22.1]} 34... Rh2+
{[%clk 0:01:35.3]} 35. Kf3 {[%clk 0:00:22]} 35... Rh3+ {[%clk 0:01:35.5]} 36.
Kg4 {[%clk 0:00:22.3]} 36... Rg3+ {[%clk 0:01:34.2]} 37. Kh5 {[%clk 0:00:21.7]}
37... Rd3 {[%clk 0:01:16.9]} 38. Kg6 {[%clk 0:00:18.1]} 38... g4 {[%clk
0:01:14.9]} 39. Rg1 {[%clk 0:00:16.9]} 39... g3 {[%clk 0:01:10.1]} 40. Rh1
{[%clk 0:00:16.7]} 40... Re3 {[%clk 0:01:03.2]} 41. Rxe3 {[%clk 0:00:16.6]}
41... Bxe3 {[%clk 0:01:04.1]} 42. Re1 {[%clk 0:00:13.5]} 42... g2 {[%clk
0:01:04.2]} 0-1

[Event "*** Titled Tuesday Blitz"]
[Site "Chess.com"]
[Date "2020.05.05"]
[Round "2"]
[White "GHANDEEVAM2003"]
[Black "yamalchess"]
[Result "1-0"]
[WhiteElo "2883"]
[BlackElo "2563"]
[TimeControl "180+1"]
[EndTime "10:17:49 PDT"]
[Termination "GHANDEEVAM2003 won on time"]

1. c4 {[%clk 0:03:00.9]} 1... f5 {[%clk 0:02:58.4]} 2. Nc3 {[%clk 0:02:57.5]}
2... Nf6 {[%clk 0:02:58.2]} 3. g3 {[%clk 0:02:57.9]} 3... g6 {[%clk 0:02:57.2]}
4. Bg2 {[%clk 0:02:58.3]} 4... d6 {[%clk 0:02:57.6]} 5. d4 {[%clk 0:02:56.9]}
5... Bg7 {[%clk 0:02:56.9]} 6. Nh3 {[%clk 0:02:57.5]} 6... Nc6 {[%clk
0:02:55.9]} 7. O-O {[%clk 0:02:55.6]} 7... e5 {[%clk 0:02:55.6]} 8. dxe5 {[%clk
0:02:55.2]} 8... Nxe5 {[%clk 0:02:54.1]} 9. Nf4 {[%clk 0:02:53.7]} 9... O-O
{[%clk 0:02:51.2]} 10. Ncd5 {[%clk 0:02:50.6]} 10... c6 {[%clk 0:02:49.6]} 11.
Nxf6+ {[%clk 0:02:50.7]} 11... Qxf6 {[%clk 0:02:49.5]} 12. Qc2 {[%clk 0:02:49]}
12... Bd7 {[%clk 0:02:47.7]} 13. Rd1 {[%clk 0:02:44.7]} 13... Rad8 {[%clk
0:02:47.4]} 14. Be3 {[%clk 0:02:43.4]} 14... a6 {[%clk 0:02:34.4]} 15. Rac1
{[%clk 0:02:36.9]} 15... Bc8 {[%clk 0:02:21]} 16. b3 {[%clk 0:02:34.8]} 16...
Rfe8 {[%clk 0:02:18.1]} 17. h3 {[%clk 0:02:33.4]} 17... Qe7 {[%clk 0:02:14.8]}
18. Qd2 {[%clk 0:02:30.8]} 18... Nf7 {[%clk 0:02:14]} 19. Bb6 {[%clk 0:02:29.2]}
19... Rd7 {[%clk 0:02:12.9]} 20. Re1 {[%clk 0:02:29.3]} 20... Be5 {[%clk
0:02:12]} 21. Nd3 {[%clk 0:02:28.2]} 21... Bf6 {[%clk 0:02:07.8]} 22. Rcd1
{[%clk 0:02:26.5]} 22... Ng5 {[%clk 0:01:59.2]} 23. f3 {[%clk 0:02:07.7]} 23...
Nf7 {[%clk 0:01:43.5]} 24. f4 {[%clk 0:02:02.1]} 24... Nd8 {[%clk 0:01:32.1]}
25. e4 {[%clk 0:01:58.7]} 25... fxe4 {[%clk 0:01:31.2]} 26. Rxe4 {[%clk
0:01:59.6]} 26... Qf7 {[%clk 0:01:27.4]} 27. Nf2 {[%clk 0:01:59.2]} 27... d5
{[%clk 0:01:18.7]} 28. cxd5 {[%clk 0:01:54.8]} 28... cxd5 {[%clk 0:00:59.6]} 29.
Rxe8+ {[%clk 0:01:51.7]} 29... Qxe8 {[%clk 0:00:59.1]} 30. Bxd5+ {[%clk
0:01:52.3]} 30... Kg7 {[%clk 0:00:59.4]} 31. Ne4 {[%clk 0:01:43.3]} 31... Ne6
{[%clk 0:00:23.8]} 32. Nxf6 {[%clk 0:01:39.2]} 32... Kxf6 {[%clk 0:00:23.6]} 33.
Qc3+ {[%clk 0:01:34.2]} 33... Kf7 {[%clk 0:00:18.8]} 34. Qe5 {[%clk 0:01:32.4]}
34... Qe7 {[%clk 0:00:15.5]} 35. Re1 {[%clk 0:01:28]} 35... Rd6 {[%clk
0:00:15.3]} 36. Bd4 {[%clk 0:01:19.3]} 36... Ke8 {[%clk 0:00:04.8]} 37. Bc5
{[%clk 0:01:13.1]} 1-0